[Event "7th Sharjah Challengers 2024"]
[Site "Sharjah"]
[Date "2024.05.16"]
[Round "3.7"]
[White "Mendes Aaron Reeve"]
[Black "Pang, Tao"]
[Result "0-1"]
[ECO "C02"]
[WhiteElo "2307"]
[BlackElo "2496"]
[Annotator "TA"]
[PlyCount "84"]
[EventDate "2024.05.13"]
[EventType "swiss"]
[EventCountry "UAE"]
[SourceTitle "playchess.com"]
[Source "ChessBase"]
[SourceQuality "1"]
[TimeControl "5400+30"]

{[%evp 13,83,0,0,0,0,0,0,0,0,0,0,0,0,-13,-14,-31,0,-17,0,0,0,-8,0,-20,0,-16,-16,-52,-35,-38,-43,-224,-225,-212,-221,-231,-232,-243,-239,-262,-260,-477,-477,-462,-462,-29977,-29978,-29978,-29979,-29978,-29979,-29979,-29980,-29980,-29981,-29981,-29982,-29982,-29983,-29983,-29984,-29985,-29986,-29987,-29988,-29990,-29991,-29991,-29992,-29996,-29997,-29999]} 1. e4 {[%emt 0:00:08][%cal Be2e4,Be4e5][%mdl 32]} e6 {[%emt 0:00:20]} 2. d4 {[%emt 0:00:15]} d5 {[%emt 0:00:16]} 3. e5 {[%emt 0:00:06]} c5 {[%emt 0:00:34]} 4. c3 {[%emt 0:00:19]} Nc6 {[%emt 0:00:11]} 5. Nf3 {[%emt 0:00:15]} Bd7 {[%emt 0:00:04]} 6. Be2 {[%emt 0:00:34]} f6 {[%emt 0:00:41]} 7. exf6 {[%emt 0:03:36]} Nxf6 {[%emt 0:01:06]} 8. O-O {[%emt 0:03:02]} cxd4 {[%emt 0:00:17]} 9. cxd4 {[%emt 0:00:11]} Bd6 {[%emt 0:00:13]} 10. Nc3 {[%emt 0:02:29] The position is equal.} O-O {[%emt 0:00:09]} 11. Bg5 {[%emt 0:02:50]} Qe8 {[%emt 0:16:53]} 12. Bh4 {[%emt 0:08:07]} Nh5 {[%emt 0:16:10]} 13. Bg3 {[%emt 0:06:23]} Nxg3 {[%emt 0:01:17]} 14. fxg3 {[%emt 0:01:12]} Bc7 {[%emt 0:07:22]} 15. Kh1 {[%emt 0:03:01]} Bb6 {[%emt 0:02:00]} (15... Qh5 {looks sharper.} 16. Kg1 Qh6 17. Na4 Bd6) 16. Qd2 {[%emt 0:02:44]} a6 {[%emt 0:08:40]} 17. Rae1 {[%emt 0:03:04]} Qg6 {[%emt 0:01:57]} 18. Bd1 {[%emt 0:10:32]} Ba7 {[%emt 0:04:52]} 19. Bc2 {[%emt 0:03:18]} Qh6 {[%emt 0:00:55]} 20. Qd1 {[%emt 0:01:52]} Rf6 {[%emt 0:07:33]} 21. g4 {[%emt 0:12:25] aiming for g5.} g5 {[%emt 0:01:01] ...Raf8 would now be deadly.} 22. g3 $2 {[%emt 0:09:36] White does not recover from this.} (22. Na4 $15) 22... Raf8 $19 {[%emt 0:03:03][%cal Oc6d4]} 23. Kg2 {[%emt 0:00:20] [#]} Nxd4 $1 {[%emt 0:01:04][%mdl 512]} 24. Nxd4 {[%emt 0:04:23]} Rxf1 {[%emt 0:00:11]} 25. Rxf1 {[%emt 0:00:02]} Rxf1 {[%emt 0:00:06]} 26. Kxf1 {[%emt 0:01:38] Threatens to win with Kg2.} Qxh2 $40 {[%emt 0:00:42][%mdl 128] White is in trouble.} 27. Nce2 $2 {[%emt 0:05:25]} (27. Qd3 Bxd4 28. Qxd4 Qxc2 29. Ke1) 27... Bb5 {[%emt 0:03:21] Strongly threatening ...Bxe2+.} ({Less strong is} 27... e5 28. Bb3 Qh1+ (28... Bxd4 29. Bxd5+ Kf8 30. Nxd4 $11) 29. Kf2 Qxd1 (29... Bxd4+ 30. Nxd4 Qxd1 31. Bxd1 $19) 30. Bxd1 $19) 28. Ke1 {[%emt 0:06:45]} Bxd4 {[%emt 0:02:03] A strong pair of Bishops.} 29. Bxh7+ {[%emt 0:00:35] [#]} (29. Nxd4 $19 Qg1+ (29... Qxg3+ 30. Kd2 $11) 30. Kd2 Qxd4+ 31. Kc1 Qxd1+ 32. Kxd1) 29... Kxh7 {[%emt 0:01:34] Black mates.} 30. Qc2+ {[%emt 0:00:09]} Kh6 {[%emt 0:00:45]} 31. Nxd4 {[%emt 0:00:09] KQB-KQN} Qg1+ {[%emt 0:00:21]} 32. Kd2 {[%emt 0:00:13]} Qxd4+ {[%emt 0:00:04]} 33. Kc1 {[%emt 0:00:07]} Qg1+ {[%emt 0:00:24]} 34. Kd2 {[%emt 0:00:06]} Qf2+ {[%emt 0:00:04]} 35. Kc1 {[%emt 0:00:41]} Qxc2+ {[%emt 0:00:16]} 36. Kxc2 {[%emt 0:00:05] KB-KP} e5 {[%emt 0:00:02]} 37. Kb3 {[%emt 0:00:07]} a5 {[%emt 0:00:04]} 38. Ka3 {[%emt 0:00:02]} e4 {[%emt 0:00:07]} 39. b3 {[%emt 0:00:03]} e3 {[%emt 0:00:07]} 40. Kb2 {[%emt 0:00:01]} e2 {[%emt 0:00:04]} 41. Ka3 {[%emt 0:00:04]} e1=Q {[%emt 0:00:06][%cal Re1c1]} 42. b4 {[%emt 0:00:04]} Qc3# {[%emt 0:00:05] Weighted Error Value: White=0.54/Black=0.03 (flawless) .  Loses game:     	White=1     	---        Mistake:       	White=2     	---        Inaccurate:     	White=1     	Black=1      OK:         	White=8     	Black=14} 0-1

[Event "7th Sharjah Challengers 2024"]
[Site "Sharjah"]
[Date "2024.05.16"]
[Round "3.8"]
[White "Burmakin, Vladimir"]
[Black "Lopez Rayo, Santiago"]
[Result "1-0"]
[ECO "A49"]
[WhiteElo "2483"]
[BlackElo "2301"]
[Annotator "RC"]
[PlyCount "101"]
[EventDate "2024.05.13"]
[EventType "swiss"]
[EventCountry "UAE"]
[SourceTitle "playchess.com"]
[Source "ChessBase"]
[SourceQuality "1"]
[TimeControl "5400+30"]

1. d4 {[%emt 0:00:02]} Nf6 {[%emt 0:00:16]} 2. Nf3 {[%emt 0:00:04]} g6 {[%emt 0:00:14]} 3. g3 {[%emt 0:00:04]} Bg7 {[%emt 0:00:12]} 4. Bg2 {[%emt 0:00:06]} O-O {[%emt 0:00:16]} 5. O-O {[%emt 0:00:11]} d6 {[%emt 0:00:11]} 6. a4 {[%emt 0:01:19]} a5 {[%emt 0:08:12]} 7. Nc3 {[%emt 0:02:42]} Nc6 {[%emt 0:01:11]} 8. d5 {[%emt 0:10:15]} Nb4 {[%emt 0:01:25]} 9. e4 {[%emt 0:00:09]} e6 {[%emt 0:10:44]} 10. h3 {[%emt 0:10:50]} e5 {[%emt 0:06:54]} 11. Bg5 {[%emt 0:02:38]} h6 {[%emt 0:03:18]} 12. Be3 {[%emt 0:01:53]} Qe7 {[%emt 0:03:18]} 13. Qd2 {[%emt 0:05:09]} Kh7 {[%emt 0:01:27]} 14. Ne1 {[%emt 0:11:40]} Nd7 {[%emt 0:19:13]} 15. Nb5 {[%emt 0:11:38]} Nc5 {[%emt 0:01:59]} 16. Bxc5 {[%emt 0:00:41]} dxc5 {[%emt 0:00:10]} 17. c3 {[%emt 0:02:08]} Na6 {[%emt 0:00:46]} 18. Nc2 {[%emt 0:01:57]} f5 {[%emt 0:07:36]} 19. exf5 {[%emt 0:01:59]} gxf5 {[%emt 0:00:12]} 20. Rae1 {[%emt 0:06:33]} Qf6 {[%emt 0:10:20]} 21. Ne3 {[%emt 0:05:30]} f4 {[%emt 0:05:46]} 22. Ng4 {[%emt 0:00:20]} Qg5 {[%emt 0:02:18]} 23. Qe2 {[%emt 0:03:36]} Bf5 {[%emt 0:03:24]} 24. Nxe5 {[%emt 0:05:55]} Rae8 {[%emt 0:04:19]} 25. Nf3 {[%emt 0:00:07]} Qh5 {[%emt 0:02:24]} 26. Qd2 {[%emt 0:05:01]} fxg3 {[%emt 0:00:42]} 27. fxg3 {[%emt 0:00:15]} Bxh3 {[%emt 0:00:26]} 28. Nh4 {[%emt 0:07:19]} Rxf1+ {[%emt 0:01:25]} 29. Rxf1 {[%emt 0:00:31]} Bxg2 {[%emt 0:00:17]} 30. Qxg2 {[%emt 0:01:03]} Re2 {[%emt 0:01:27]} 31. Rf2 {[%emt 0:00:01]} Rxf2 {[%emt 0:01:20]} 32. Kxf2 {[%emt 0:00:07]} Qe5 {[%emt 0:03:53]} 33. Qf3 {[%emt 0:00:34]} c6 {[%emt 0:00:48]} 34. dxc6 {[%emt 0:00:35]} bxc6 {[%emt 0:00:03]} 35. Qxc6 {[%emt 0:00:24]} Nb8 {[%emt 0:00:53]} 36. Qg6+ {[%emt 0:00:37]} Kg8 {[%emt 0:00:10]} 37. Nf5 {[%emt 0:00:26]} Qf6 {[%emt 0:00:59]} 38. Qxf6 {[%emt 0:00:13]} Bxf6 {[%emt 0:00:04]} 39. Nxh6+ {[%emt 0:00:04]} Kf8 {[%emt 0:00:22]} 40. Nd6 {[%emt 0:00:45]} Nc6 {[%emt 0:00:29]} 41. Nc4 {[%emt 0:00:11]} Bd8 {[%emt 0:01:05]} 42. Kf3 {[%emt 0:00:37]} Kg7 {[%emt 0:00:14]} 43. Nf5+ {[%emt 0:01:19]} Kf6 {[%emt 0:00:02]} 44. Ke4 {[%emt 0:00:37]} Ke6 {[%emt 0:00:09]} 45. g4 {[%emt 0:00:33]} Bg5 {[%emt 0:00:44]} 46. Nfd6 {[%emt 0:00:36]} Nd8 {[%emt 0:00:35]} 47. Nb5 {[%emt 0:00:12]} Nc6 {[%emt 0:00:22]} 48. Nc7+ {[%emt 0:00:22]} Kd7 {[%emt 0:00:21]} 49. Nd5 {[%emt 0:00:16]} Ke6 {[%emt 0:00:06]} 50. Nf4+ {[%emt 0:00:17]} Kd7 {[%emt 0:01:30]} 51. Nd3 {[%emt 0:00:47]} 1-0

[Event "7th Sharjah Challengers 2024"]
[Site "Sharjah"]
[Date "2024.05.16"]
[Round "3.9"]
[White "Hakobyan, Erik"]
[Black "Rios Gomez, Cristhian Camilo"]
[Result "1/2-1/2"]
[ECO "B30"]
[WhiteElo "2340"]
[BlackElo "2472"]
[Annotator "RC"]
[PlyCount "80"]
[EventDate "2024.05.13"]
[EventType "swiss"]
[EventCountry "UAE"]
[SourceTitle "playchess.com"]
[Source "ChessBase"]
[SourceQuality "1"]
[TimeControl "5400+30"]

1. e4 {[%emt 0:00:03]} c5 {[%emt 0:00:07]} 2. Nf3 {[%emt 0:00:04]} Nc6 {[%emt 0:00:08]} 3. Bb5 {[%emt 0:00:05]} e6 {[%emt 0:00:07]} 4. Nc3 {[%emt 0:01:50]} Nge7 {[%emt 0:06:22]} 5. d4 {[%emt 0:04:30]} cxd4 {[%emt 0:01:13]} 6. Nxd4 {[%emt 0:00:04]} Ng6 {[%emt 0:01:13]} 7. Be3 {[%emt 0:08:07]} Be7 {[%emt 0:00:17]} 8. g3 {[%emt 0:07:07]} O-O {[%emt 0:06:19]} 9. h4 {[%emt 0:01:35]} a6 {[%emt 0:02:09]} 10. Be2 {[%emt 0:11:19]} d5 {[%emt 0:08:47]} 11. h5 {[%emt 0:08:15]} Nge5 {[%emt 0:01:25]} 12. h6 {[%emt 0:00:16]} g6 {[%emt 0:00:20]} 13. Qd2 {[%emt 0:14:01]} Na5 {[%emt 0:10:20]} 14. b3 {[%emt 0:01:26]} Qc7 {[%emt 0:00:10]} 15. O-O {[%emt 0:12:36]} Bb4 {[%emt 0:11:06]} 16. Nxd5 {[%emt 0:01:34]} Bxd2 {[%emt 0:00:12]} 17. Nxc7 {[%emt 0:00:07]} Bxe3 {[%emt 0:00:12]} 18. fxe3 {[%emt 0:00:44]} Ra7 {[%emt 0:01:45]} 19. b4 {[%emt 0:01:12]} Nac4 {[%emt 0:00:08]} 20. b5 {[%emt 0:03:04]} Bd7 {[%emt 0:03:23]} 21. Rf2 {[%emt 0:01:13]} axb5 {[%emt 0:08:19]} 22. Ncxb5 {[%emt 0:00:34]} Ra5 {[%emt 0:01:03]} 23. Bxc4 {[%emt 0:03:02]} Nxc4 {[%emt 0:00:16]} 24. Nc3 {[%emt 0:00:04]} Nxe3 {[%emt 0:02:51]} 25. Rb1 {[%emt 0:00:22]} Ng4 {[%emt 0:03:02]} 26. Rd2 {[%emt 0:00:51]} Bc8 {[%emt 0:00:59]} 27. Rb6 {[%emt 0:04:09]} Rg5 {[%emt 0:06:34]} 28. Rb5 {[%emt 0:02:31]} Rxb5 {[%emt 0:01:06]} 29. Ndxb5 {[%emt 0:00:05]} Nxh6 {[%emt 0:01:21]} 30. Rd6 {[%emt 0:00:29]} f5 {[%emt 0:06:07]} 31. Rb6 {[%emt 0:01:50]} Nf7 {[%emt 0:00:39]} 32. Kf2 {[%emt 0:03:42]} fxe4 {[%emt 0:03:39]} 33. Ke3 {[%emt 0:00:57]} Ne5 {[%emt 0:03:09]} 34. Nd6 {[%emt 0:00:08]} Nd7 {[%emt 0:02:13]} 35. Rb3 {[%emt 0:01:26]} b6 {[%emt 0:02:22]} 36. Ncxe4 {[%emt 0:00:47]} Ba6 {[%emt 0:00:08]} 37. Ra3 {[%emt 0:01:31]} Ra8 {[%emt 0:02:58]} 38. Rc3 {[%emt 0:00:14]} Ra7 {[%emt 0:00:09]} 39. Ra3 {[%emt 0:01:11]} Ra8 {[%emt 0:00:13]} 40. Rc3 {[%emt 0:00:04]} Ra7 {[%emt 0:00:06]} 1/2-1/2

[Event "7th Sharjah Challengers 2024"]
[Site "Sharjah"]
[Date "2024.05.16"]
[Round "3.10"]
[White "Peycheva, Gergana"]
[Black "Nitish Belurkar"]
[Result "1/2-1/2"]
[ECO "D12"]
[WhiteElo "2295"]
[BlackElo "2451"]
[Annotator "TA"]
[PlyCount "50"]
[EventDate "2024.05.13"]
[EventType "swiss"]
[EventCountry "UAE"]
[SourceTitle "playchess.com"]
[Source "ChessBase"]
[SourceQuality "1"]
[TimeControl "5400+30"]

{[%evp 12,50,34,34,34,8,12,16,30,7,49,50,55,-17,0,0,25,0,0,0,0,0,29,-2,0,-3,0,-17,-9,-14,-6,-43,9,0,0,0,0,0,0,0,27]} 1. d4 {[%emt 0:00:03]} d5 {[%emt 0:00:08]} 2. c4 {[%emt 0:00:22]} c6 {[%emt 0:00:06]} 3. e3 {[%emt 0:02:43]} Nf6 {[%emt 0:00:16]} 4. Nf3 {[%emt 0:02:23]} Bf5 {[%emt 0:00:18]} 5. Nc3 {[%emt 0:00:12]} e6 {[%emt 0:00:08]} 6. Nh4 {[%emt 0:02:12]} Be4 {[%emt 0:00:08]} 7. f3 {[%emt 0:02:56]} Bg6 {[%emt 0:00:08]} 8. Nxg6 {[%emt 0:02:07]} hxg6 {[%emt 0:00:07]} 9. Qb3 {[%emt 0:00:20]} Qc7 {[%emt 0:00:39]} 10. Bd2 {[%emt 0:01:45]} a5 {[%emt 0:05:58][%cal Ba7a5,Ba5a4][%mdl 32]} 11. cxd5 {[%emt 0:10:33]} Nxd5 {[%emt 0:08:26]} 12. O-O-O {[%emt 0:08:36]} ({White should try} 12. e4 $14 Nxc3 13. bxc3) 12... Nxc3 $11 {[%emt 0:10:39]} 13. Bxc3 {[%emt 0:03:31]} b5 {[%emt 0:00:41][%cal Oa5a4]} 14. Kb1 {[%emt 0:05:04]} a4 {[%emt 0:13:25]} 15. Qc2 {[%emt 0:00:58]} b4 {[%emt 0:03:12]} 16. Be1 {[%emt 0:02:48]} Bd6 {[%emt 0:07:42]} (16... b3 $5 17. axb3 axb3 18. Qxb3 Bd6 $11) 17. h4 {[%emt 0:11:58] [#]} b3 $1 {[%emt 0:08:46]} 18. axb3 {[%emt 0:02:46]} axb3 {[%emt 0:00:24]} 19. Qxb3 {[%emt 0:01:51]} Nd7 {[%emt 0:02:53][%cal Bb8d7,Bd7b6,Bb6a4][%mdl 32]} 20. Bc4 {[%emt 0:03:29]} Ke7 {[%emt 0:06:53]} 21. h5 {[%emt 0:07:22]} g5 {[%emt 0:09:09] [#] Prevents Bh4} (21... Rhb8 $15 22. Qd3 gxh5) 22. h6 $1 {[%emt 0:03:05] The position is equal.} gxh6 {[%emt 0:01:27]} 23. Qd3 {[%emt 0:04:21]} Qb7 {[%emt 0:04:29]} 24. Bc3 {[%emt 0:03:09][%cal Of3f4]} Nb6 {[%emt 0:00:27]} 25. Kc2 {[%emt 0:02:28]} Na4 {[%emt 0:06:59] Weighted Error Value: White=0.13 (very precise) /Black=0.10 (very precise) .  Mistake:       	White=1     	Black=1      Inaccurate:     	White=3     	Black=3      OK:         	White=8     	Black=8      Best:        	---       	Black=1      Brilliant:      	---       	Black=1} 1/2-1/2

[Event "7th Sharjah Challengers 2024"]
[Site "Sharjah"]
[Date "2024.05.16"]
[Round "3.11"]
[White "Mohammad Fahad, Rahman"]
[Black "Mulenga, Prince Daniel"]
[Result "1/2-1/2"]
[ECO "E14"]
[WhiteElo "2435"]
[BlackElo "2219"]
[Annotator "TA"]
[PlyCount "160"]
[EventDate "2024.05.13"]
[EventType "swiss"]
[EventCountry "UAE"]
[SourceTitle "playchess.com"]
[Source "ChessBase"]
[SourceQuality "1"]
[TimeControl "5400+30"]

{[%evp 21,160,52,48,43,49,38,43,25,25,32,26,-66,13,-4,7,0,0,0,0,-13,0,0,0,0,0,-9,-6,-6,0,0,0,0,18,0,35,37,30,11,22,0,47,53,64,47,57,80,60,39,52,50,37,34,35,16,19,20,19,16,18,20,20,20,109,109,109,109,109,41,41,40,40,40,29,29,26,24,25,0,0,0,0,0,0,8,8,15,15,15,15,15,29,29,29,37,37,37,37,37,37,37,37,37,163,177,183,199,222,0,0,0,0,0,0,0,0,0,0,0,0,0,0,0,0,0,0,0,0,0,0,0,0,0,0,0,0,0,0,0,0,0,0]} 1. d4 {[%emt 0:00:10]} Nf6 {[%emt 0:00:14]} 2. c4 {[%emt 0:00:45]} e6 {[%emt 0:00:14]} 3. Nf3 {[%emt 0:00:17]} Bb4+ {[%emt 0:01:08]} 4. Nbd2 {[%emt 0:00:38]} b6 {[%emt 0:00:30]} 5. a3 {[%emt 0:00:24]} Bxd2+ {[%emt 0:00:05]} 6. Qxd2 {[%emt 0:00:18]} Bb7 {[%emt 0:00:08]} 7. e3 {[%emt 0:00:39]} O-O {[%emt 0:00:09]} 8. Be2 {[%emt 0:00:32]} d6 {[%emt 0:00:36]} 9. O-O {[%emt 0:00:29]} Nbd7 {[%emt 0:00:03]} 10. b4 {[%emt 0:00:33]} Ne4 {[%emt 0:00:18]} 11. Qc2 {[%emt 0:00:14]} f5 {[%emt 0:00:05] [#]} 12. d5 $1 {[%emt 0:09:09]} e5 {[%emt 0:08:51] Prevents Nd4.} 13. Bb2 {[%emt 0:03:25]} Qe7 {[%emt 0:00:28]} 14. Rfd1 {[%emt 0:05:18] White is slightly better.} c6 {[%emt 0:11:23]} 15. dxc6 {[%emt 0:01:06]} Bxc6 {[%emt 0:00:06]} 16. Ne1 {[%emt 1:14:33]} (16. Nd2 $11) 16... Ng5 {[%emt 0:02:13]} (16... Qh4 $15 17. Bd3 Qh6) 17. Bd3 $11 {[%emt 0:00:30]} g6 {[%emt 0:10:36]} 18. Qb3 {[%emt 0:00:00]} Nf7 {[%emt 0:03:21]} 19. Be2 {[%emt 0:00:00]} Rac8 {[%emt 0:02:54]} 20. Rd2 {[%emt 0:00:00]} Nf6 {[%emt 0:01:31]} 21. f3 {[%emt 0:00:00]} Bd7 {[%emt 0:00:20]} 22. a4 {[%emt 0:00:00]} Be6 {[%emt 0:00:03]} 23. Nc2 {[%emt 0:00:00]} a6 {[%emt 0:56:44]} 24. Na3 {[%emt 0:00:00]} Qb7 {[%emt 0:00:00]} 25. Qd1 {[%emt 0:00:00]} Rfd8 {[%emt 0:00:00]} 26. Rc1 {[%emt 0:00:00]} Rd7 {[%emt 0:00:00]} 27. f4 {[%emt 0:00:00]} Rcd8 {[%emt 0:00:00]} 28. Qe1 {[%emt 0:00:00]} Ne4 {[%emt 0:00:00]} 29. Bf3 {[%emt 0:00:00]} Rc8 {[%emt 0:00:00]} 30. Qh4 {[%emt 0:00:00]} Rdc7 {[%emt 0:00:00]} (30... Qc6 $11) 31. Rcd1 {[%emt 0:00:00]} Re8 {[%emt 0:00:00]} (31... Bxc4 $2 32. fxe5 Bb3 (32... dxe5 33. Nxc4 Rxc4 34. Rd7 $18) 33. e6 Bxd1 (33... Bxe6 $2 34. Bxe4 Qxe4 35. Qf6 $18) 34. exf7+ Rxf7 35. Rxd1 $18) 32. h3 {[%emt 0:00:00][%cal Od2d6]} (32. b5 {is more complex.} a5 33. h3 Bxc4 34. fxe5 Bb3 35. exd6 Rd7 36. Bxe4 Qxe4 37. Qxe4 fxe4 38. Rc1) 32... Rcc8 {[%emt 0:00:00] [#]} 33. Rxd6 $1 {[%emt 0:00:00]} Nfxd6 {[%emt 0:00:00]} 34. Rxd6 {[%emt 0:00:00] And now Bxe4 would win.} Qe7 $1 {[%emt 0:00:00]} (34... Bxc4 $2 {is the wrong capture.} 35. Nxc4 (35. Bxe5 Bf7 $16) 35... Rxc4 36. Bxe5 $18 (36. fxe5 $2 Nxd6 37. Bxb7 Rxh4 $19)) 35. Qxe7 {[%emt 0:00:00]} Rxe7 {[%emt 0:00:00]} 36. Bxe4 {[%emt 0:00:00]} fxe4 {[%emt 0:00:00]} 37. Bxe5 {[%emt 0:00:00]} (37. fxe5 {seems wilder.} a5 38. Rxb6 axb4 39. Nb5) 37... Bxc4 {[%emt 0:00:00]} 38. Nxc4 {[%emt 0:00:00]} Rxc4 {[%emt 0:00:00]} 39. Rxb6 $14 {[%emt 0:00:00][%cal Oa4a5][%mdl 4096] Endgame. KRR-KRB} a5 $1 {[%emt 0:00:00]} 40. bxa5 {[%emt 0:00:00] a6 is the strong threat.} Rxa4 {[%emt 0:00:00]} 41. a6 {[%emt 0:00:00] aiming for Bd4.} Kf7 {[%emt 0:00:00]} (41... Re8 $1 $11 {keeps the balance.}) 42. Rf6+ $16 {[%emt 0:02:11]} Ke8 {[%emt 0:00:26]} 43. Bd4 {[%emt 0:00:07] Prevents Ra7} Rc7 {[%emt 0:00:32]} 44. f5 {[%emt 0:03:23]} (44. a7 $16) 44... gxf5 $14 {[%emt 0:00:16]} 45. a7 {[%emt 0:00:12]} Rf7 {[%emt 0:01:19]} 46. Rd6 {[%emt 0:01:16]} Raxa7 {[%emt 0:00:13]} 47. Bxa7 {[%emt 0:01:41]} Rxa7 {[%emt 0:00:01] KR-KR} 48. Rd5 {[%emt 0:01:11]} Rf7 {[%emt 0:01:46]} 49. Kh2 {[%emt 0:00:14]} Ke7 {[%emt 0:00:10]} 50. Kg3 {[%emt 0:00:06] Hoping for Kf4.} Ke6 {[%emt 0:00:13]} 51. Ra5 {[%emt 0:00:05] Strongly threatening Kf4.} Rg7+ $1 {[%emt 0:00:04]} 52. Kf4 {[%emt 0:00:07]} Rxg2 {[%emt 0:00:59]} 53. Re5+ {[%emt 0:00:07]} (53. Rxf5 Rf2+ 54. Kxe4 Rxf5 55. h4 Rh5 56. Kf4 Rxh4+ 57. Kf3 Ke5 58. Kf2 Rc4 59. Kf3 Kf5 60. Kf2 Ke4 61. Ke2 h5 62. Kf2 Rc2+ 63. Kg1 Kxe3 64. Kf1 h4 65. Kg1 Kf3 66. Kh1 Kg3 67. Kg1 Rc1#) 53... Kf6 {[%emt 0:01:26]} 54. Rxf5+ {[%emt 0:00:02]} Kg6 {[%emt 0:00:00]} 55. Kxe4 {[%emt 0:00:15]} h5 {[%emt 0:01:32]} 56. h4 {[%emt 0:00:18]} Ra2 {[%emt 0:00:15] ( -> ...Ra4+)} 57. Rf4 {[%emt 0:03:16]} Ra3 {[%emt 0:00:19]} 58. Kf3 {[%emt 0:05:59]} Ra1 {[%emt 0:00:05]} 59. Rd4 {[%emt 0:00:00]} Rh1 {[%emt 0:00:33]} 60. Kg3 {[%emt 0:00:00]} Kf5 {[%emt 0:00:15]} 61. Rd5+ {[%emt 0:00:00]} Ke4 {[%emt 0:00:25]} (61... Kg6 $14) 62. Rxh5 $18 {[%emt 0:00:00]} Kxe3 {[%emt 0:00:01] [#]} 63. Re5+ $1 {[%emt 0:00:00]} Kd4 {[%emt 0:00:33]} 64. Ra5 $2 {[%emt 0:00:00]} ({White should try} 64. Re6 $18) 64... Ke4 $1 $11 {[%emt 0:00:06] The position is equal.} 65. Kg4 {[%emt 0:00:00] Kg5 would now be deadly.} Rg1+ {[%emt 0:00:11]} 66. Kh5 {[%emt 0:00:00]} Kf4 {[%emt 0:01:50]} 67. Kh6 {[%emt 0:00:00]} Rb1 {[%emt 0:01:28]} 68. Rg5 {[%emt 0:00:00]} Rb8 {[%emt 0:00:44]} 69. Kh7 {[%emt 0:00:00]} Rb7+ {[%emt 0:00:07]} 70. Kg6 {[%emt 0:00:00]} Rb6+ {[%emt 0:00:09]} 71. Kh5 {[%emt 0:00:00]} Rb8 {[%emt 0:00:08]} 72. Rg6 {[%emt 0:00:03]} Kf5 {[%emt 0:00:54]} 73. Ra6 {[%emt 0:00:28]} Rh8+ {[%emt 0:00:11]} 74. Rh6 {[%emt 0:00:02]} Rb8 {[%emt 0:00:10]} 75. Rh7 {[%emt 0:00:09]} Kf6 {[%emt 0:00:29]} 76. Kh6 {[%emt 0:00:07]} Kf5 {[%emt 0:01:09]} 77. Rc7 {[%emt 0:01:10]} Rh8+ {[%emt 0:00:06]} 78. Rh7 {[%emt 0:00:06]} Rxh7+ {[%emt 0:00:08]} 79. Kxh7 {[%emt 0:00:05]} Kg4 {[%emt 0:00:01]} 80. h5 {[%emt 0:00:09]} Kxh5 {[%emt 0:00:01] Weighted Error Value: White=0.09 (flawless) /Black=0.09 (flawless) .  Missed win:     	White=1     	---        Mistake:       	White=2     	Black=4      Inaccurate:     	---       	Black=1      OK:         	White=29    	Black=26     Best:        	White=4     	Black=9      Strong:       	White=1     	Black=4} 1/2-1/2

[Event "7th Sharjah Challengers 2024"]
[Site "Sharjah"]
[Date "2024.05.16"]
[Round "3.12"]
[White "Movahed, Sina"]
[Black "Kazarian, Anna-Maja"]
[Result "1-0"]
[ECO "C02"]
[WhiteElo "2464"]
[BlackElo "2182"]
[Annotator "TA"]
[PlyCount "49"]
[EventDate "2024.05.13"]
[EventType "swiss"]
[EventCountry "UAE"]
[SourceTitle "playchess.com"]
[Source "ChessBase"]
[SourceQuality "1"]
[TimeControl "5400+30"]

{[%evp 14,49,47,45,49,37,64,39,78,43,136,102,100,85,247,179,173,168,114,125,109,95,149,104,389,397,692,676,684,686,670,670,790,790,797,794,766,766]} 1. e4 {[%emt 0:00:04]} e6 {[%emt 0:00:03]} 2. d4 {[%emt 0:00:05]} d5 {[%emt 0:00:03]} 3. e5 {[%emt 0:00:06]} c5 {[%emt 0:00:03]} 4. c3 {[%emt 0:00:04]} Qb6 {[%emt 0:00:20]} 5. Nf3 {[%emt 0:00:03]} Bd7 {[%emt 0:00:06]} 6. Be2 {[%emt 0:00:12]} Nc6 {[%emt 0:02:05]} 7. O-O {[%emt 0:00:06]} Rc8 {[%emt 0:01:19]} 8. dxc5 {[%emt 0:03:56]} Bxc5 {[%emt 0:00:05]} 9. b4 {[%emt 0:00:06]} Be7 {[%emt 0:01:46]} 10. Na3 {[%emt 0:00:11]} f6 {[%emt 0:09:53] White is slightly better.} 11. Be3 {[%emt 0:05:48][%cal Bc1e3,Be3c5,Bc5d6][%mdl 32]} Qc7 {[%emt 0:04:30]} (11... Qd8 $14) 12. Nb5 {[%emt 0:02:37][%csl LRa7,LRc7]} Qb8 {[%emt 0:00:56]} 13. c4 $36 {[%emt 0:01:23][%mdl 2048] White is in control. White has more active pieces. The black rooks are passive.} dxc4 {[%emt 0:13:45]} (13... Nxe5 $16 {might work better.} 14. Bxa7 (14. Nxa7 Nxf3+ 15. gxf3 Rd8 $14) 14... Nxf3+ 15. Bxf3 Qf4) 14. Bc5 {[%emt 0:02:58]} Nxe5 {[%emt 0:17:38]} 15. Nd6+ {[%emt 0:05:08]} ({Resist} 15. Bxa7 Qa8 16. a4 Bxb4 $16 (16... Nxf3+ 17. Bxf3 Nh6 18. Bb6 $18)) 15... Bxd6 {[%emt 0:01:19]} 16. Bxd6 {[%emt 0:00:02]} Nxf3+ {[%emt 0:00:25]} 17. Bxf3 {[%emt 0:00:04][%cal Be2f3,Bf3g4,Bg4h5][%mdl 32]} Qa8 {[%emt 0:00:07]} 18. Re1 {[%emt 0:00:40][%mdl 1024] [#] aiming for Bg4. White has strong compensation.} Ne7 $2 {[%emt 0:03:12][%mdl 8192]} (18... Kf7 $16) 19. Bg4 $18 {[%emt 0:22:58]} f5 $2 {[%emt 0:01:46]} (19... Kf7 20. Bxe6+ Bxe6) 20. Bh5+ {[%emt 0:00:54] A strong pair of Bishops. White is clearly winning.} g6 {[%emt 0:03:16]} 21. Qd4 {[%emt 0:00:29]} O-O {[%emt 0:16:08][%cal Of8f7]} 22. Bxe7 {[%emt 0:00:09]} Rf7 {[%emt 0:00:07]} 23. Qxd7 {[%emt 0:00:09]} gxh5 {[%emt 0:00:05]} 24. Qxe6 {[%emt 0:00:21] [#] Re3 would now be deadly.} Re8 {[%emt 0:00:39]} 25. Qxc4 {[%emt 0:00:09] Weighted Error Value: White=0.17 (very precise) /Black=0.72.  Loses game:     	---       	Black=2      Mistake:       	---       	Black=2      Inaccurate:     	White=2     	Black=2      OK:         	White=5     	Black=5      Best:        	White=1     	Black=1} 1-0